[Event "Titled Tuesday Blitz July 18 Late 2023"]
[White "Todev, Simeon"]
[Black "Rodriguez Fontecha, Marcos"]
[WhiteFideId "2925133"]
[BlackFideId "2256576"]
[WhiteElo "2379"]
[BlackElo "2474"]
[Result "0-1"]
[Round "8"]
[TimeControl "180+2"]
[Date "2023.07.18"]
[WhiteClock "0:00:02"]
[BlackClock "0:00:02"]
[Board "90"]

1. e4 {[%clk 0:03:00]}  e6 {[%clk 0:03:00]} 2. d4 {[%clk 0:03:00]}  d5 {[%clk 0:03:00]} 3. exd5 {[%clk 0:03:00]}  exd5 {[%clk 0:03:00]} 4. Nf3 {[%clk 0:03:01]}  Bd6 {[%clk 0:02:57]} 5. c4 {[%clk 0:03:00]}  dxc4 {[%clk 0:02:55]} 6. Bxc4 {[%clk 0:03:01]}  Nf6 {[%clk 0:02:55]} 7. Nc3 {[%clk 0:03:01]}  O-O {[%clk 0:02:55]} 8. O-O {[%clk 0:03:00]}  Bb4 {[%clk 0:02:54]} 9. Bg5 {[%clk 0:03:00]}  Qd6 {[%clk 0:02:45]} 10. a3 {[%clk 0:02:57]}  Bxc3 {[%clk 0:02:44]} 11. bxc3 {[%clk 0:02:58]}  Bg4 {[%clk 0:02:43]} 12. h3 {[%clk 0:02:58]}  Bh5 {[%clk 0:02:42]} 13. Bd3 {[%clk 0:02:58]}  Nbd7 {[%clk 0:02:25]} 14. Bh4 {[%clk 0:02:54]}  c5 {[%clk 0:02:18]} 15. Be2 {[%clk 0:02:30]}  cxd4 {[%clk 0:02:14]} 16. cxd4 {[%clk 0:02:28]}  Nb6 {[%clk 0:02:08]} 17. Qd2 {[%clk 0:02:19]}  Rad8 {[%clk 0:01:59]} 18. Rfd1 {[%clk 0:02:13]}  Rfe8 {[%clk 0:01:56]} 19. Rac1 {[%clk 0:02:06]}  h6 {[%clk 0:01:41]} 20. Qc2 {[%clk 0:01:55]}  Nbd5 {[%clk 0:01:37]} 21. Ne5 {[%clk 0:01:45]}  Bxe2 {[%clk 0:01:31]} 22. Qxe2 {[%clk 0:01:43]}  Rc8 {[%clk 0:01:24]} 23. Qb5 {[%clk 0:01:25]}  b6 {[%clk 0:01:15]} 24. Bg3 {[%clk 0:01:19]}  Nc3 {[%clk 0:00:59]} 25. Rxc3 {[%clk 0:00:40]}  Rxc3 {[%clk 0:01:00]} 26. Ng4 {[%clk 0:00:41]}  Qc6 {[%clk 0:00:26]} 27. Nxf6+ {[%clk 0:00:25]}  gxf6 {[%clk 0:00:27]} 28. Qh5 {[%clk 0:00:22]}  Rc1 {[%clk 0:00:19]} 29. Bf4 {[%clk 0:00:16]}  Rxd1+ {[%clk 0:00:15]} 30. Qxd1 {[%clk 0:00:17]}  Qe4 {[%clk 0:00:15]} 31. Qg4+ {[%clk 0:00:11]}  Kh7 {[%clk 0:00:11]} 32. Qh4 {[%clk 0:00:09]}  Qg6 {[%clk 0:00:07]} 33. d5 {[%clk 0:00:09]}  Re4 {[%clk 0:00:04]} 34. d6 {[%clk 0:00:07]}  Rd4 {[%clk 0:00:04]} 35. g3 {[%clk 0:00:05]}  h5 {[%clk 0:00:04]} 36. Kh2 {[%clk 0:00:05]}  Rd1 {[%clk 0:00:03]} 37. g4 {[%clk 0:00:03]}  Kg8 {[%clk 0:00:03]} 38. Bg3 {[%clk 0:00:03]}  Qe4 {[%clk 0:00:03]} 39. Bf4 {[%clk 0:00:01]}  Qh1+ {[%clk 0:00:01]} 40. Kg3 {[%clk 0:00:02]}  Rg1# {[%clk 0:00:02]} 0-1


[Site "https://www.chess.com"]

[Event "Titled Tuesday Blitz July 18 Late 2023"]
[White "ExchangeAB"]
[Black "Melnichuk, Mikhail"]
[BlackFideId "14117533"]
[WhiteElo "2369"]
[BlackElo "2466"]
[Result "0-1"]
[Round "8"]
[TimeControl "180+2"]
[Date "2023.07.18"]
[WhiteClock "0:00:02"]
[BlackClock "0:00:17"]
[Board "92"]

1. d4 {[%clk 0:03:00]}  Nf6 {[%clk 0:02:56]} 2. Nc3 {[%clk 0:03:00]}  d5 {[%clk 0:02:54]} 3. Bf4 {[%clk 0:03:01]}  a6 {[%clk 0:02:52]} 4. e3 {[%clk 0:03:00]}  Bf5 {[%clk 0:02:51]} 5. f3 {[%clk 0:02:57]}  h6 {[%clk 0:02:49]} 6. g4 {[%clk 0:02:56]}  Bh7 {[%clk 0:02:48]} 7. Bd3 {[%clk 0:02:57]}  Bxd3 {[%clk 0:02:47]} 8. Qxd3 {[%clk 0:02:58]}  e6 {[%clk 0:02:47]} 9. h4 {[%clk 0:02:58]}  Bd6 {[%clk 0:02:45]} 10. Nge2 {[%clk 0:02:58]}  Nc6 {[%clk 0:02:42]} 11. a3 {[%clk 0:02:57]}  Qe7 {[%clk 0:02:39]} 12. Bxd6 {[%clk 0:02:56]}  Qxd6 {[%clk 0:02:38]} 13. Kf2 {[%clk 0:02:40]}  O-O-O {[%clk 0:02:35]} 14. Ng3 {[%clk 0:02:24]}  g6 {[%clk 0:02:29]} 15. g5 {[%clk 0:02:12]}  Nd7 {[%clk 0:02:21]} 16. f4 {[%clk 0:02:09]}  Nb6 {[%clk 0:02:18]} 17. b3 {[%clk 0:02:05]}  Ne7 {[%clk 0:02:15]} 18. a4 {[%clk 0:02:01]}  Kb8 {[%clk 0:02:02]} 19. a5 {[%clk 0:02:01]}  Nbc8 {[%clk 0:02:02]} 20. Na4 {[%clk 0:02:01]}  Nf5 {[%clk 0:01:56]} 21. Nxf5 {[%clk 0:01:58]}  exf5 {[%clk 0:01:51]} 22. Nc5 {[%clk 0:01:58]}  Qc6 {[%clk 0:01:46]} 23. b4 {[%clk 0:01:39]}  Nd6 {[%clk 0:01:45]} 24. c3 {[%clk 0:01:15]}  Rde8 {[%clk 0:01:44]} 25. Rab1 {[%clk 0:01:11]}  Nc4 {[%clk 0:01:27]} 26. Rh3 {[%clk 0:00:34]}  hxg5 {[%clk 0:01:26]} 27. fxg5 {[%clk 0:00:35]}  Re7 {[%clk 0:01:17]} 28. Rbh1 {[%clk 0:00:31]}  Rhe8 {[%clk 0:01:17]} 29. Re1 {[%clk 0:00:22]}  f4 {[%clk 0:01:17]} 30. e4 {[%clk 0:00:22]}  Rxe4 {[%clk 0:00:56]} 31. Nxe4 {[%clk 0:00:18]}  dxe4 {[%clk 0:00:57]} 32. d5 {[%clk 0:00:14]}  Qd7 {[%clk 0:00:42]} 33. Rxe4 {[%clk 0:00:10]}  Rxe4 {[%clk 0:00:38]} 34. Qxe4 {[%clk 0:00:11]}  Qxh3 {[%clk 0:00:37]} 35. Qxc4 {[%clk 0:00:12]}  Qxh4+ {[%clk 0:00:36]} 36. Kf1 {[%clk 0:00:11]}  Qxg5 {[%clk 0:00:34]} 37. Qc5 {[%clk 0:00:10]}  Qd8 {[%clk 0:00:28]} 38. c4 {[%clk 0:00:08]}  Qd6 {[%clk 0:00:26]} 39. Qd4 {[%clk 0:00:09]}  Qxb4 {[%clk 0:00:23]} 40. Qh8+ {[%clk 0:00:08]}  Ka7 {[%clk 0:00:23]} 41. Qd4+ {[%clk 0:00:08]}  b6 {[%clk 0:00:23]} 42. axb6+ {[%clk 0:00:08]}  Qxb6 {[%clk 0:00:23]} 43. Qxf4 {[%clk 0:00:08]}  f5 {[%clk 0:00:21]} 44. Qe5 {[%clk 0:00:07]}  Qb1+ {[%clk 0:00:18]} 45. Kg2 {[%clk 0:00:07]}  Qe4+ {[%clk 0:00:17]} 46. Qxe4 {[%clk 0:00:07]}  fxe4 {[%clk 0:00:18]} 47. c5 {[%clk 0:00:07]}  a5 {[%clk 0:00:18]} 48. c6 {[%clk 0:00:03]}  Kb6 {[%clk 0:00:17]} 49. d6 {[%clk 0:00:02]}  cxd6 {[%clk 0:00:17]} 0-1


[Site "https://www.chess.com"]

[Event "Titled Tuesday Blitz July 18 Late 2023"]
[White "Kostiukov, Alexandr"]
[Black "Pein, Jonathan"]
[WhiteFideId "14108100"]
[BlackFideId "417092"]
[WhiteElo "2353"]
[BlackElo "2443"]
[Result "1/2-1/2"]
[Round "8"]
[TimeControl "180+2"]
[Date "2023.07.18"]
[WhiteClock "0:00:00"]
[BlackClock "0:00:05"]
[Board "98"]

1. g3 {[%clk 0:02:59]}  h5 {[%clk 0:02:56]} 2. Nf3 {[%clk 0:02:59]}  Nc6 {[%clk 0:02:55]} 3. e4 {[%clk 0:02:56]}  e5 {[%clk 0:02:53]} 4. Bg2 {[%clk 0:02:55]}  Bc5 {[%clk 0:02:53]} 5. O-O {[%clk 0:02:53]}  d6 {[%clk 0:02:53]} 6. c3 {[%clk 0:02:52]}  Nf6 {[%clk 0:02:46]} 7. d4 {[%clk 0:02:52]}  Bb6 {[%clk 0:02:46]} 8. dxe5 {[%clk 0:02:51]}  Nxe5 {[%clk 0:02:39]} 9. Nxe5 {[%clk 0:02:51]}  dxe5 {[%clk 0:02:40]} 10. Qxd8+ {[%clk 0:02:50]}  Kxd8 {[%clk 0:02:41]} 11. Bg5 {[%clk 0:02:48]}  c6 {[%clk 0:02:38]} 12. Nd2 {[%clk 0:02:44]}  Be6 {[%clk 0:02:37]} 13. a4 {[%clk 0:02:39]}  Kc7 {[%clk 0:02:33]} 14. a5 {[%clk 0:02:31]}  Bc5 {[%clk 0:02:33]} 15. b4 {[%clk 0:02:31]}  Be7 {[%clk 0:02:33]} 16. h3 {[%clk 0:02:29]}  Rad8 {[%clk 0:02:32]} 17. Rfd1 {[%clk 0:02:27]}  Rhe8 {[%clk 0:02:23]} 18. Be3 {[%clk 0:02:27]}  Kb8 {[%clk 0:02:19]} 19. Bf1 {[%clk 0:02:02]}  Nd7 {[%clk 0:02:11]} 20. Nc4 {[%clk 0:01:59]}  f6 {[%clk 0:02:11]} 21. Nd6 {[%clk 0:01:59]}  Rf8 {[%clk 0:02:06]} 22. Rd2 {[%clk 0:01:51]}  Kc7 {[%clk 0:01:58]} 23. Rad1 {[%clk 0:01:50]}  Nb8 {[%clk 0:01:59]} 24. Bxa7 {[%clk 0:01:35]}  Rxd6 {[%clk 0:01:54]} 25. Bb6+ {[%clk 0:01:16]}  Kd7 {[%clk 0:01:53]} 26. Bc5 {[%clk 0:01:14]}  Rxd2 {[%clk 0:01:51]} 27. Rxd2+ {[%clk 0:01:15]}  Ke8 {[%clk 0:01:49]} 28. Bb6 {[%clk 0:01:08]}  Nd7 {[%clk 0:01:45]} 29. Bc7 {[%clk 0:01:09]}  Kf7 {[%clk 0:01:44]} 30. f4 {[%clk 0:01:06]}  g6 {[%clk 0:01:22]} 31. Kf2 {[%clk 0:00:55]}  Rc8 {[%clk 0:01:22]} 32. Bd6 {[%clk 0:00:55]}  Bxd6 {[%clk 0:01:20]} 33. Rxd6 {[%clk 0:00:56]}  Ke7 {[%clk 0:01:20]} 34. Rd2 {[%clk 0:00:53]}  c5 {[%clk 0:01:13]} 35. b5 {[%clk 0:00:51]}  c4 {[%clk 0:01:05]} 36. Ke3 {[%clk 0:00:39]}  Nc5 {[%clk 0:01:01]} 37. Ra2 {[%clk 0:00:38]}  Ra8 {[%clk 0:00:55]} 38. h4 {[%clk 0:00:34]}  Kd7 {[%clk 0:00:43]} 39. f5 {[%clk 0:00:29]}  gxf5 {[%clk 0:00:41]} 40. exf5 {[%clk 0:00:29]}  Bf7 {[%clk 0:00:41]} 41. Be2 {[%clk 0:00:28]}  Kc7 {[%clk 0:00:37]} 42. Bf3 {[%clk 0:00:25]}  e4 {[%clk 0:00:33]} 43. Be2 {[%clk 0:00:21]}  Nb3 {[%clk 0:00:30]} 44. a6 {[%clk 0:00:19]}  bxa6 {[%clk 0:00:31]} 45. bxa6 {[%clk 0:00:19]}  Nc5 {[%clk 0:00:32]} 46. a7 {[%clk 0:00:19]}  Kb6 {[%clk 0:00:29]} 47. Kd4 {[%clk 0:00:18]}  Rd8+ {[%clk 0:00:28]} 48. Ke3 {[%clk 0:00:16]}  Ra8 {[%clk 0:00:28]} 49. Kd4 {[%clk 0:00:16]}  Nb3+ {[%clk 0:00:28]} 50. Kxe4 {[%clk 0:00:15]}  Rxa7 {[%clk 0:00:25]} 51. Rxa7 {[%clk 0:00:15]}  Kxa7 {[%clk 0:00:26]} 52. g4 {[%clk 0:00:13]}  hxg4 {[%clk 0:00:26]} 53. Bxg4 {[%clk 0:00:14]}  Kb6 {[%clk 0:00:20]} 54. h5 {[%clk 0:00:14]}  Nc5+ {[%clk 0:00:20]} 55. Kd4 {[%clk 0:00:14]}  Nb3+ {[%clk 0:00:19]} 56. Ke4 {[%clk 0:00:13]}  Nd2+ {[%clk 0:00:20]} 57. Kd4 {[%clk 0:00:13]}  Kc6 {[%clk 0:00:16]} 58. h6 {[%clk 0:00:13]}  Bg8 {[%clk 0:00:16]} 59. Bh5 {[%clk 0:00:12]}  Kd6 {[%clk 0:00:10]} 60. Bg6 {[%clk 0:00:12]}  Nf3+ {[%clk 0:00:10]} 61. Ke3 {[%clk 0:00:09]}  Ng5 {[%clk 0:00:11]} 62. Kd4 {[%clk 0:00:09]}  Bh7 {[%clk 0:00:11]} 63. Kxc4 {[%clk 0:00:07]}  Ke5 {[%clk 0:00:12]} 64. Kb5 {[%clk 0:00:06]}  Bg8 {[%clk 0:00:08]} 65. c4 {[%clk 0:00:07]}  Ne4 {[%clk 0:00:07]} 66. c5 {[%clk 0:00:06]}  Nc3+ {[%clk 0:00:07]} 67. Kb6 {[%clk 0:00:06]}  Nd5+ {[%clk 0:00:08]} 68. Kb7 {[%clk 0:00:06]}  Ne7 {[%clk 0:00:08]} 69. c6 {[%clk 0:00:06]}  Bd5 {[%clk 0:00:06]} 70. h7 {[%clk 0:00:05]}  Bxc6+ {[%clk 0:00:07]} 71. Kc7 {[%clk 0:00:06]}  Be4 {[%clk 0:00:05]} 72. h8=Q {[%clk 0:00:06]}  Bxf5 {[%clk 0:00:06]} 73. Bxf5 {[%clk 0:00:06]}  Nxf5 {[%clk 0:00:06]} 74. Qe8+ {[%clk 0:00:05]}  Kf4 {[%clk 0:00:07]} 75. Kc6 {[%clk 0:00:05]}  Kg5 {[%clk 0:00:06]} 76. Kd5 {[%clk 0:00:05]}  Nh6 {[%clk 0:00:05]} 77. Ke6 {[%clk 0:00:02]}  f5 {[%clk 0:00:04]} 78. Qf8 {[%clk 0:00:01]}  f4 {[%clk 0:00:05]} 79. Qf6+ {[%clk 0:00:01]}  Kh5 {[%clk 0:00:05]} 80. Qxf4 {[%clk 0:00:00]}  Ng4 {[%clk 0:00:05]} 1/2-1/2


[Site "https://www.chess.com"]

[Event "Titled Tuesday Blitz July 18 Late 2023"]
[White "Figorito, Nick"]
[Black "Castella Garcia, Fausto"]
[WhiteFideId "30923689"]
[BlackFideId "3501922"]
[WhiteElo "2353"]
[BlackElo "2429"]
[Result "0-1"]
[Round "8"]
[TimeControl "180+2"]
[Date "2023.07.18"]
[WhiteClock "0:00:07"]
[BlackClock "0:00:07"]
[Board "99"]

1. Nf3 {[%clk 0:03:00]}  c5 {[%clk 0:02:59]} 2. g3 {[%clk 0:03:01]}  g6 {[%clk 0:02:59]} 3. Bg2 {[%clk 0:03:02]}  Bg7 {[%clk 0:03:00]} 4. O-O {[%clk 0:03:02]}  Nf6 {[%clk 0:03:00]} 5. c4 {[%clk 0:03:03]}  O-O {[%clk 0:03:00]} 6. d4 {[%clk 0:03:03]}  cxd4 {[%clk 0:02:59]} 7. Nxd4 {[%clk 0:03:04]}  Nc6 {[%clk 0:02:59]} 8. Nc2 {[%clk 0:03:04]}  d6 {[%clk 0:02:58]} 9. Nc3 {[%clk 0:03:05]}  Qa5 {[%clk 0:02:58]} 10. Qd2 {[%clk 0:03:02]}  Be6 {[%clk 0:02:50]} 11. b3 {[%clk 0:02:50]}  Qh5 {[%clk 0:02:41]} 12. Qg5 {[%clk 0:02:35]}  Bf5 {[%clk 0:02:00]} 13. e4 {[%clk 0:01:47]}  Bg4 {[%clk 0:01:50]} 14. Qxh5 {[%clk 0:01:41]}  gxh5 {[%clk 0:01:36]} 15. Bb2 {[%clk 0:01:40]}  Nd7 {[%clk 0:01:25]} 16. Ne3 {[%clk 0:01:30]}  Nc5 {[%clk 0:01:16]} 17. Nxg4 {[%clk 0:01:21]}  hxg4 {[%clk 0:01:17]} 18. Rad1 {[%clk 0:01:17]}  Rfe8 {[%clk 0:00:59]} 19. Ba1 {[%clk 0:01:15]}  Ne5 {[%clk 0:00:57]} 20. Nd5 {[%clk 0:01:11]}  Rac8 {[%clk 0:00:55]} 21. f4 {[%clk 0:01:00]}  gxf3 {[%clk 0:00:54]} 22. Bxf3 {[%clk 0:01:00]}  Nxf3+ {[%clk 0:00:53]} 23. Rxf3 {[%clk 0:01:00]}  Bxa1 {[%clk 0:00:51]} 24. Rxa1 {[%clk 0:01:01]}  Nxe4 {[%clk 0:00:51]} 25. Re1 {[%clk 0:00:53]}  Ng5 {[%clk 0:00:46]} 26. Rfe3 {[%clk 0:00:41]}  Ne6 {[%clk 0:00:43]} 27. Re4 {[%clk 0:00:39]}  a6 {[%clk 0:00:33]} 28. a4 {[%clk 0:00:38]}  b5 {[%clk 0:00:30]} 29. axb5 {[%clk 0:00:38]}  axb5 {[%clk 0:00:31]} 30. cxb5 {[%clk 0:00:36]}  Rc5 {[%clk 0:00:32]} 31. Nf4 {[%clk 0:00:35]}  Rxb5 {[%clk 0:00:20]} 32. Nxe6 {[%clk 0:00:34]}  fxe6 {[%clk 0:00:19]} 33. Rxe6 {[%clk 0:00:34]}  Kf7 {[%clk 0:00:18]} 34. R6e3 {[%clk 0:00:34]}  e5 {[%clk 0:00:17]} 35. Rc1 {[%clk 0:00:24]}  Re7 {[%clk 0:00:15]} 36. Rc6 {[%clk 0:00:19]}  Ke6 {[%clk 0:00:15]} 37. Rd3 {[%clk 0:00:18]}  Rd7 {[%clk 0:00:15]} 38. Rf3 {[%clk 0:00:13]}  e4 {[%clk 0:00:15]} 39. Rf8 {[%clk 0:00:14]}  Kd5 {[%clk 0:00:13]} 40. Rc3 {[%clk 0:00:13]}  Kd4 {[%clk 0:00:12]} 41. Rc1 {[%clk 0:00:13]}  Rxb3 {[%clk 0:00:12]} 42. Rd1+ {[%clk 0:00:13]}  Rd3 {[%clk 0:00:12]} 43. Ra1 {[%clk 0:00:12]}  d5 {[%clk 0:00:12]} 44. Rb8 {[%clk 0:00:11]}  e3 {[%clk 0:00:10]} 45. Rb4+ {[%clk 0:00:11]}  Ke5 {[%clk 0:00:08]} 46. Re1 {[%clk 0:00:09]}  d4 {[%clk 0:00:08]} 47. Kg2 {[%clk 0:00:08]}  Ke4 {[%clk 0:00:06]} 48. Rb6 {[%clk 0:00:07]}  Rd2+ {[%clk 0:00:06]} 49. Kh3 {[%clk 0:00:08]}  Rd5 {[%clk 0:00:06]} 50. Re6+ {[%clk 0:00:08]}  Re5 {[%clk 0:00:06]} 51. Rxe5+ {[%clk 0:00:08]}  Kxe5 {[%clk 0:00:06]} 52. Ra1 {[%clk 0:00:07]}  Ke4 {[%clk 0:00:06]} 53. Ra7 {[%clk 0:00:07]}  e2 {[%clk 0:00:06]} 54. Rxh7 {[%clk 0:00:06]}  d3 {[%clk 0:00:05]} 55. Re7+ {[%clk 0:00:06]}  Kd4 {[%clk 0:00:05]} 56. Kg4 {[%clk 0:00:06]}  Rd1 {[%clk 0:00:05]} 57. Rd7+ {[%clk 0:00:06]}  Ke3 {[%clk 0:00:04]} 58. Re7+ {[%clk 0:00:06]}  Kf2 {[%clk 0:00:05]} 59. Rf7+ {[%clk 0:00:07]}  Kg2 {[%clk 0:00:06]} 60. Re7 {[%clk 0:00:03]}  e1=Q {[%clk 0:00:06]} 61. Rxe1 {[%clk 0:00:04]}  Rxe1 {[%clk 0:00:06]} 62. h4 {[%clk 0:00:05]}  d2 {[%clk 0:00:06]} 63. h5 {[%clk 0:00:06]}  d1=Q+ {[%clk 0:00:07]} 64. Kg5 {[%clk 0:00:06]}  Qd8+ {[%clk 0:00:07]} 65. Kh6 {[%clk 0:00:07]}  Re6+ {[%clk 0:00:07]} 66. Kg7 {[%clk 0:00:06]}  Qf6+ {[%clk 0:00:07]} 67. Kg8 {[%clk 0:00:06]}  Re8+ {[%clk 0:00:07]} 68. Kh7 {[%clk 0:00:07]}  Rh8# {[%clk 0:00:07]} 0-1


[Site "https://www.chess.com"]

[Event "Titled Tuesday Blitz July 18 Late 2023"]
[White "Prydun, Andriy"]
[Black "Herman, Daniel"]
[WhiteFideId "14145898"]
[BlackFideId "30935008"]
[WhiteElo "2348"]
[BlackElo "2428"]
[Result "0-1"]
[Round "8"]
[TimeControl "180+2"]
[Date "2023.07.18"]
[WhiteClock "0:00:00"]
[BlackClock "0:00:08"]
[Board "100"]

1. d4 {[%clk 0:03:00]}  Nf6 {[%clk 0:02:56]} 2. Nd2 {[%clk 0:03:01]}  d5 {[%clk 0:02:55]} 3. Ngf3 {[%clk 0:03:01]}  e6 {[%clk 0:02:53]} 4. Nb3 {[%clk 0:02:55]}  a5 {[%clk 0:02:50]} 5. a4 {[%clk 0:02:53]}  Nc6 {[%clk 0:02:42]} 6. Bg5 {[%clk 0:02:47]}  h6 {[%clk 0:02:40]} 7. Bh4 {[%clk 0:02:45]}  g5 {[%clk 0:02:39]} 8. Bg3 {[%clk 0:02:45]}  Ne4 {[%clk 0:02:39]} 9. Nfd2 {[%clk 0:02:36]}  Nxg3 {[%clk 0:02:32]} 10. hxg3 {[%clk 0:02:35]}  Bg7 {[%clk 0:02:29]} 11. c3 {[%clk 0:02:34]}  e5 {[%clk 0:02:28]} 12. e3 {[%clk 0:02:27]}  O-O {[%clk 0:02:22]} 13. Bb5 {[%clk 0:02:13]}  e4 {[%clk 0:02:20]} 14. c4 {[%clk 0:02:02]}  Nb4 {[%clk 0:02:12]} 15. cxd5 {[%clk 0:02:00]}  Bf5 {[%clk 0:01:55]} 16. Rc1 {[%clk 0:01:41]}  Nd3+ {[%clk 0:01:37]} 17. Bxd3 {[%clk 0:01:37]}  exd3 {[%clk 0:01:38]} 18. Qf3 {[%clk 0:01:13]}  Bg6 {[%clk 0:01:25]} 19. e4 {[%clk 0:01:03]}  Re8 {[%clk 0:01:21]} 20. Kf1 {[%clk 0:01:02]}  Ra6 {[%clk 0:01:02]} 21. Qxd3 {[%clk 0:00:48]}  Rb6 {[%clk 0:00:57]} 22. f3 {[%clk 0:00:39]}  Qxd5 {[%clk 0:00:57]} 23. Rxc7 {[%clk 0:00:36]}  Qd6 {[%clk 0:00:55]} 24. Rc5 {[%clk 0:00:26]}  Qxg3 {[%clk 0:00:54]} 25. Rxa5 {[%clk 0:00:24]}  Rbe6 {[%clk 0:00:38]} 26. Nc5 {[%clk 0:00:20]}  R6e7 {[%clk 0:00:37]} 27. Rb5 {[%clk 0:00:19]}  f5 {[%clk 0:00:34]} 28. Rxb7 {[%clk 0:00:16]}  Rxb7 {[%clk 0:00:31]} 29. Nxb7 {[%clk 0:00:17]}  fxe4 {[%clk 0:00:32]} 30. Qb3+ {[%clk 0:00:14]}  Bf7 {[%clk 0:00:26]} 31. Qc2 {[%clk 0:00:11]}  e3 {[%clk 0:00:25]} 32. Ne4 {[%clk 0:00:11]}  Qb8 {[%clk 0:00:18]} 33. Ned6 {[%clk 0:00:10]}  e2+ {[%clk 0:00:17]} 34. Ke1 {[%clk 0:00:09]}  Re7 {[%clk 0:00:14]} 35. Nxf7 {[%clk 0:00:08]}  Qxb7 {[%clk 0:00:12]} 36. Nd6 {[%clk 0:00:08]}  Qb4+ {[%clk 0:00:11]} 37. Qc3 {[%clk 0:00:09]}  Qxd6 {[%clk 0:00:11]} 38. b4 {[%clk 0:00:04]}  Bxd4 {[%clk 0:00:11]} 39. Qc4+ {[%clk 0:00:04]}  Kg7 {[%clk 0:00:10]} 40. Rh3 {[%clk 0:00:00]}  Bf6 {[%clk 0:00:08]} 0-1


[Site "https://www.chess.com"]

[Event "Titled Tuesday Blitz July 18 Late 2023"]
[White "Kovacsy, Barnabas"]
[Black "Avalos Parra, Joao"]
[WhiteFideId "769290"]
[BlackFideId "3402541"]
[WhiteElo "2426"]
[BlackElo "2347"]
[Result "1-0"]
[Round "8"]
[TimeControl "180+2"]
[Date "2023.07.18"]
[WhiteClock "0:00:29"]
[BlackClock "0:00:03"]
[Board "101"]

1. e4 {[%clk 0:03:00]}  e5 {[%clk 0:02:49]} 2. Nf3 {[%clk 0:03:00]}  Nc6 {[%clk 0:02:50]} 3. Bb5 {[%clk 0:02:59]}  a6 {[%clk 0:02:49]} 4. Bxc6 {[%clk 0:03:00]}  dxc6 {[%clk 0:02:49]} 5. Nc3 {[%clk 0:03:01]}  Bd6 {[%clk 0:02:47]} 6. d4 {[%clk 0:03:01]}  exd4 {[%clk 0:02:40]} 7. Qxd4 {[%clk 0:03:02]}  f6 {[%clk 0:02:39]} 8. Be3 {[%clk 0:03:02]}  Ne7 {[%clk 0:02:37]} 9. O-O-O {[%clk 0:02:59]}  Be6 {[%clk 0:02:32]} 10. Kb1 {[%clk 0:02:51]}  O-O {[%clk 0:02:32]} 11. Qd3 {[%clk 0:02:46]}  Ng6 {[%clk 0:02:04]} 12. Nd4 {[%clk 0:02:43]}  Bf7 {[%clk 0:02:02]} 13. f3 {[%clk 0:02:35]}  Qe8 {[%clk 0:01:57]} 14. Nf5 {[%clk 0:02:31]}  Bb4 {[%clk 0:01:49]} 15. Qd7 {[%clk 0:02:16]}  Qe5 {[%clk 0:01:35]} 16. Bd4 {[%clk 0:02:04]}  Qa5 {[%clk 0:01:35]} 17. a3 {[%clk 0:02:03]}  Bxc3 {[%clk 0:01:30]} 18. Bxc3 {[%clk 0:02:02]}  Qb6 {[%clk 0:01:28]} 19. Ne7+ {[%clk 0:01:59]}  Nxe7 {[%clk 0:01:22]} 20. Qxe7 {[%clk 0:01:59]}  Rfe8 {[%clk 0:01:21]} 21. Qb4 {[%clk 0:01:45]}  Qxb4 {[%clk 0:01:08]} 22. Bxb4 {[%clk 0:01:46]}  Rad8 {[%clk 0:01:06]} 23. Kc1 {[%clk 0:01:38]}  Bc4 {[%clk 0:01:05]} 24. Rd2 {[%clk 0:01:34]}  Rxd2 {[%clk 0:01:02]} 25. Kxd2 {[%clk 0:01:35]}  Rd8+ {[%clk 0:00:57]} 26. Ke3 {[%clk 0:01:35]}  Kf7 {[%clk 0:00:57]} 27. b3 {[%clk 0:01:35]}  Be6 {[%clk 0:00:55]} 28. Ke2 {[%clk 0:01:30]}  b6 {[%clk 0:00:52]} 29. Rd1 {[%clk 0:01:26]}  Re8 {[%clk 0:00:47]} 30. Kf2 {[%clk 0:01:15]}  f5 {[%clk 0:00:46]} 31. e5 {[%clk 0:01:05]}  f4 {[%clk 0:00:46]} 32. h4 {[%clk 0:01:02]}  Bf5 {[%clk 0:00:42]} 33. Bc3 {[%clk 0:00:54]}  Bxc2 {[%clk 0:00:36]} 34. Rd7+ {[%clk 0:00:49]}  Re7 {[%clk 0:00:36]} 35. Rxe7+ {[%clk 0:00:49]}  Kxe7 {[%clk 0:00:36]} 36. b4 {[%clk 0:00:49]}  Ke6 {[%clk 0:00:34]} 37. g3 {[%clk 0:00:47]}  fxg3+ {[%clk 0:00:32]} 38. Kxg3 {[%clk 0:00:48]}  Kf5 {[%clk 0:00:28]} 39. e6 {[%clk 0:00:44]}  Kxe6 {[%clk 0:00:28]} 40. Bxg7 {[%clk 0:00:44]}  Kf5 {[%clk 0:00:26]} 41. Bd4 {[%clk 0:00:42]}  h5 {[%clk 0:00:24]} 42. Be3 {[%clk 0:00:41]}  Bb3 {[%clk 0:00:22]} 43. Bf4 {[%clk 0:00:41]}  c5 {[%clk 0:00:21]} 44. bxc5 {[%clk 0:00:40]}  bxc5 {[%clk 0:00:21]} 45. Bxc7 {[%clk 0:00:41]}  c4 {[%clk 0:00:22]} 46. Ba5 {[%clk 0:00:41]}  Bd1 {[%clk 0:00:20]} 47. Bc3 {[%clk 0:00:40]}  Bc2 {[%clk 0:00:19]} 48. Kf2 {[%clk 0:00:38]}  Kf4 {[%clk 0:00:19]} 49. Bd2+ {[%clk 0:00:38]}  Ke5 {[%clk 0:00:18]} 50. Ke3 {[%clk 0:00:37]}  Bd3 {[%clk 0:00:17]} 51. Bc3+ {[%clk 0:00:37]}  Kd5 {[%clk 0:00:18]} 52. a4 {[%clk 0:00:35]}  Bc2 {[%clk 0:00:18]} 53. a5 {[%clk 0:00:35]}  Bb1 {[%clk 0:00:18]} 54. Kf4 {[%clk 0:00:34]}  Bd3 {[%clk 0:00:15]} 55. Kg5 {[%clk 0:00:33]}  Be2 {[%clk 0:00:16]} 56. Kf4 {[%clk 0:00:30]}  Bd1 {[%clk 0:00:14]} 57. Ke3 {[%clk 0:00:29]}  Bc2 {[%clk 0:00:12]} 58. f4 {[%clk 0:00:29]}  Bd1 {[%clk 0:00:12]} 59. f5 {[%clk 0:00:29]}  Bg4 {[%clk 0:00:12]} 60. f6 {[%clk 0:00:29]}  Ke6 {[%clk 0:00:13]} 61. Kf4 {[%clk 0:00:27]}  Be2 {[%clk 0:00:12]} 62. Kg5 {[%clk 0:00:27]}  Kf7 {[%clk 0:00:11]} 63. Kf5 {[%clk 0:00:27]}  Bf3 {[%clk 0:00:11]} 64. Ke5 {[%clk 0:00:27]}  Be2 {[%clk 0:00:11]} 65. Kd6 {[%clk 0:00:27]}  Bg4 {[%clk 0:00:09]} 66. Kc5 {[%clk 0:00:28]}  Be6 {[%clk 0:00:08]} 67. Kb6 {[%clk 0:00:28]}  Bc8 {[%clk 0:00:09]} 68. Kc7 {[%clk 0:00:28]}  Be6 {[%clk 0:00:09]} 69. Kb7 {[%clk 0:00:28]}  Kg6 {[%clk 0:00:05]} 70. Kxa6 {[%clk 0:00:29]}  Kf5 {[%clk 0:00:03]} 71. Kb6 {[%clk 0:00:29]} 1-0


[Site "https://www.chess.com"]